bitfinex/quotes_ETHUSD_20240614
["timestamp","ask_amount","ask_price","bid_price","bid_amount"]
[1718382017433,10.20811,3425.0,3424.0,1.43344514]
[1718382017896,2.91932,3425.5,3424.1,2.97884266]
[1718382018243,10.5335,3425.7,3424.5,1.43344514]
[1718382018244,7.4505,3425.7,3424.5,1.43344514]
[1718382018393,7.4505,3425.7,3425.0,2.9197]
[1718382018715,7.4505,3425.7,3424.4,1.758]
[1718382018716,7.4505,3425.7,3424.4,2.92021]
[1718382018889,7.4505,3425.7,3424.5,7.35353514]
[1718382019091,7.4505,3425.7,3424.6,3.65531351]
[1718382019289,2.9192,3425.6,3424.6,1.43344514]
[1718382019741,7.4505,3425.7,3424.7,1.43344514]
[1718382019892,7.4505,3425.7,3424.8,0.05838787]
[1718382020232,7.4505,3425.7,3424.5,2.92013]
[1718382020233,10.36965,3425.7,3424.5,2.92013]
[1718382020392,10.36965,3425.7,3424.6,1.43344514]
[1718382020722,7.4505,3425.7,3424.6,5.38087065]
[1718382020922,10.36963,3425.7,3424.6,2.46083065]
[1718382021089,7.4505,3425.7,3424.6,2.46083065]
[1718382021446,7.4505,3425.7,3424.7,2.97833919]
[1718382021594,7.0422,3426.3,3425.2,2.91953]
[1718382021794,7.0422,3426.3,3425.3,1.4918302]
[1718382022256,0.1202585,3426.6,3425.3,1.4918302]
[1718382022395,0.1202585,3426.6,3425.6,2.91911]
[1718382022597,0.1202585,3426.6,3425.6,1.43344514]
[1718382023331,0.1202585,3426.6,3426.0,2.91879]
[1718382023540,0.1202585,3426.6,3426.1,1.43344514]
[1718382023891,0.1202585,3426.6,3425.7,2.9191]
[1718382024096,0.1202585,3426.6,3425.8,1.43344514]
[1718382024296,0.1202585,3426.6,3425.9,0.05837234]
[1718382024496,0.1202585,3426.6,3426.5,5.83684]
[1718382024742,0.1202585,3426.6,3426.5,5.22741514]
[1718382024942,0.1202585,3426.6,3426.5,7.27028514]
[1718382025140,0.1202585,3426.6,3426.5,13.73870514]
[1718382025656,0.1202585,3426.6,3426.5,15.49670514]
[1718382027013,7.1846,3428.4,3427.5,2.91753]
[1718382027216,7.1846,3428.4,3427.6,1.43344514]
[1718382027542,2.9162,3429.2,3427.6,1.43344514]
[1718382027543,10.21432,3429.0,3427.6,1.43344514]
[1718382027762,1.313052,3428.9,3427.6,1.43344514]
[1718382027911,2.91656,3428.7,3427.6,1.43344514]
[1718382028106,1.313052,3428.9,3427.0,2.91798]
[1718382028312,2.9169,3428.3,3427.0,1.43344514]
[1718382028508,2.91679,3428.5,3427.0,1.43344514]
[1718382028860,4.51644514,3428.8,3427.0,1.43344514]
[1718382028861,7.369,3428.2,3427.0,1.43344514]
[1718382029004,2.91714,3428.1,3427.0,1.43344514]
[1718382029339,7.369,3428.2,3426.6,3.0]
[1718382029651,7.369,3428.2,3425.6,3.855]
[1718382029652,2.91741,3427.7,3425.6,3.855]
[1718382029955,2.91715,3428.0,3426.7,4.35167514]
[1718382030161,7.369,3428.2,3426.8,2.97649243]
[1718382030312,10.28598,3428.2,3427.0,2.91799]
[1718382030656,7.369,3428.2,3427.1,1.43344514]
[1718382030870,3.208489,3428.4,3427.2,2.91778]
[1718382031012,2.9169,3428.3,3427.3,1.43344514]
[1718382031212,6.9872,3428.8,3427.4,0.05834619]
[1718382031560,6.9872,3428.8,3427.5,4.35101514]
[1718382031779,0.05703428,3428.7,3427.6,2.97582138]
[1718382031922,0.05703428,3428.7,3427.7,1.43344514]
[1718382032119,3.05703428,3428.7,3426.9,4.758]
[1718382032324,3.05703428,3428.7,3427.2,2.91783]
[1718382032325,2.91681,3428.4,3427.2,2.91783]
[1718382032641,0.05749635,3428.3,3427.3,1.43344514]
[1718382032835,0.05749635,3428.3,3427.3,4.40952116]
[1718382033016,0.05749635,3428.3,3427.3,1.43344514]
[1718382033221,2.97439635,3428.3,3427.3,1.43344514]
[1718382033418,3.70624655,3428.3,3427.3,1.43344514]
[1718382033662,3.70624655,3428.3,3426.8,2.91817]
[1718382033869,3.70624655,3428.3,3425.8,6.8879]
[1718382033870,7.1065,3427.8,3426.2,2.91861]
[1718382034077,10.02384,3427.8,3426.3,1.43344514]
[1718382034239,3.0,3428.2,3427.0,2.91795]
[1718382034240,0.05729611,3427.7,3427.0,2.91795]
[1718382034440,10.02324,3428.5,3427.1,1.43344514]
[1718382034650,0.05723572,3427.6,3427.3,2.91766]
[1718382034957,7.1065,3428.5,3427.4,1.43344514]
[1718382035278,0.05788035,3428.4,3427.5,0.05834282]
[1718382035567,0.05788035,3428.4,3427.6,1.43344514]
[1718382036665,0.05788035,3428.4,3427.6,4.35091514]
[1718382036870,0.91705595,3428.4,3427.6,1.43344514]
[1718382037724,2.91707,3428.1,3427.1,3.0]
[1718382037927,2.91732,3427.8,3426.3,2.91858]
[1718382038171,9.68946,3427.3,3426.4,1.43344514]
[1718382038381,6.7717,3427.3,3426.4,1.43344514]
[1718382038679,0.05710981,3427.2,3426.7,2.91818]
[1718382038883,0.05710981,3427.2,3426.8,1.49180077]
[1718382039026,7.0215,3427.9,3426.8,1.49180077]
[1718382039221,0.0576488,3427.8,3426.8,1.43344514]
[1718382039626,0.0576488,3427.8,3427.2,2.91776]
[1718382039826,0.0576488,3427.8,3427.3,4.40952207]
[1718382040024,3.0,3429.1,3427.3,5.14226528]
[1718382040025,10.13806,3428.5,3427.3,5.14226528]
[1718382040247,0.0577243,3428.4,3427.3,4.35117514]
[1718382040477,0.0577243,3428.4,3427.3,1.43344514]
[1718382040777,2.9745543,3428.4,3427.3,1.43344514]
[1718382040985,2.9169,3428.3,3427.3,1.43344514]
[1718382041134,0.0577243,3428.4,3426.8,2.9181]
[1718382041339,2.91733,3427.8,3426.6,3.0]
[1718382041694,0.05713398,3427.7,3426.7,1.43344514]
[1718382042288,2.97456398,3427.7,3426.7,1.43344514]
[1718382042455,2.91758,3427.5,3426.7,1.43344514]
[1718382042789,0.05713398,3427.7,3426.8,2.91816]
[1718382043037,2.91698,3428.2,3426.9,1.43344514]
[1718382043038,0.05735292,3427.4,3426.9,1.43344514]
[1718382043144,2.91724,3427.9,3426.9,1.43344514]
[1718382043346,0.05730467,3427.6,3426.9,1.43344514]
[1718382043546,0.72790243,3428.3,3426.9,1.43344514]
[1718382043547,0.05741337,3427.8,3427.0,2.97635393]
[1718382043846,2.91724,3427.9,3427.0,1.43344514]
[1718382044047,0.05745853,3427.7,3427.1,1.49179906]
[1718382044292,2.91698,3428.3,3427.2,2.91781]
[1718382044493,2.91698,3428.3,3427.3,1.49179259]
[1718382044693,0.05784715,3428.2,3427.3,1.43344514]
[1718382045188,5.89191715,3428.2,3427.3,1.43344514]
[1718382045396,3.79798272,3428.1,3427.3,1.43344514]
[1718382045580,2.91722,3428.0,3426.9,3.0]
[1718382045898,0.05773849,3428.0,3426.9,1.43344514]
[1718382046096,2.91739,3427.8,3426.9,1.43344514]
[1718382046402,2.91751,3427.6,3426.9,1.43344514]
[1718382046562,0.583475,3427.6,3426.9,1.43344514]
[1718382046764,0.05727324,3427.7,3426.9,1.43344514]
[1718382046965,0.0571624,3427.5,3427.0,4.40979045]
[1718382047165,0.05732131,3427.6,3427.1,2.9179]
[1718382047497,2.91726,3427.9,3427.1,1.43344514]
[1718382047800,2.91707,3428.1,3427.2,1.43344514]
[1718382048038,0.05732435,3427.8,3426.4,7.67646]
[1718382048211,3.50047,3428.1,3426.8,2.91816]
[1718382048507,2.91734,3427.8,3426.8,1.43344514]
[1718382048705,2.97453996,3428.0,3426.8,1.43344514]
[1718382048891,0.05732434,3427.7,3427.0,2.91795]
[1718382049090,3.50047,3428.1,3427.1,1.43344514]
[1718382049413,6.9377,3430.2,3428.0,7.0293]
[1718382049704,6.9377,3430.2,3427.6,2.91745]
[1718382049705,2.91615,3429.2,3428.1,1.43344514]
[1718382049891,6.9317,3429.1,3428.1,1.43344514]
[1718382050077,9.84794,3429.1,3428.1,1.43344514]
[1718382050276,2.91638,3428.9,3427.6,2.91748]
[1718382050491,0.984808,3428.8,3427.7,4.35084514]
[1718382050814,0.984808,3428.8,3427.8,0.0583392]
[1718382050971,6.9317,3429.1,3428.1,2.91706]
[1718382051170,6.9317,3429.1,3428.2,1.49178093]
[1718382051495,6.9317,3429.1,3428.2,1.43344514]
[1718382051664,2.91602,3429.4,3428.2,1.43344514]
[1718382051871,4.227339,3429.4,3428.2,1.43344514]
[1718382052929,5.8322,3429.3,3427.9,2.9172]
[1718382053134,1.311319,3429.4,3427.9,2.9172]
[1718382053135,2.91628,3429.1,3427.9,2.9172]
[1718382053417,2.91631,3429.0,3427.9,2.9172]
[1718382053709,0.4227449,3429.1,3428.1,2.91702]
[1718382053868,0.4227449,3429.1,3428.0,1.43344514]
[1718382053869,3.3389649,3429.1,3428.0,1.43344514]
[1718382054224,0.4227449,3429.1,3428.0,4.35057514]
[1718382054441,2.91604,3429.3,3428.0,4.35059514]
[1718382054600,2.91604,3429.3,3428.1,2.91699]
[1718382054928,1.311319,3429.4,3428.2,1.43344514]
[1718382055099,1.311319,3429.4,3428.3,2.9752187]
[1718382055308,1.311319,3429.4,3428.4,1.43344514]
[1718382055701,0.1202585,3430.0,3428.6,3.19144514]
[1718382055903,0.1202585,3430.0,3428.7,0.60831475]
[1718382056145,0.1202585,3430.0,3429.2,2.91605]
[1718382056444,0.1202585,3430.0,3429.3,1.43344514]
[1718382056813,0.0702585,3430.0,3429.3,1.43344514]
[1718382057027,0.05168231,3429.9,3429.3,1.43344514]
[1718382059016,0.05168231,3429.9,3428.7,0.55]
[1718382059232,0.05168231,3429.9,3428.7,1.43344514]
[1718382059421,2.91579,3429.6,3428.7,1.43344514]
[1718382059621,2.91579,3429.6,3428.0,2.9171]
[1718382059622,0.05146285,3429.5,3429.2,1.43344514]
[1718382059944,0.0702585,3430.0,3428.8,2.91645]
[1718382060125,6.8329,3429.9,3428.9,1.49176433]
[1718382060328,6.88486701,3429.9,3428.9,1.43344514]
[1718382060557,2.91571,3429.7,3428.3,2.91688]
[1718382060764,2.91588,3429.5,3428.4,4.35025514]
[1718382060973,2.91611,3429.3,3428.4,1.43344514]
[1718382061173,2.96761924,3429.4,3427.6,11.112]
[1718382061322,2.91629,3429.1,3428.0,2.91714]
[1718382061671,0.05131039,3429.0,3428.1,1.43344514]
[1718382062020,2.91616,3429.2,3428.1,1.43344514]
[1718382062371,0.05136981,3429.1,3428.1,1.43344514]
[1718382062661,2.96757981,3429.1,3428.1,1.43344514]
[1718382062977,2.91649,3428.8,3428.1,1.43344514]
[1718382063116,2.91649,3428.8,3427.1,6.43604151]
[1718382063117,2.9169,3428.3,3427.1,2.19315151]
[1718382063321,2.91725,3427.9,3427.2,1.43344514]
[1718382063521,2.91722,3428.0,3427.2,1.43344514]
[1718382063743,0.05040113,3427.8,3427.2,1.62030481]
[1718382063945,2.91733,3427.8,3427.2,1.62030481]
[1718382064265,2.91759,3427.5,3427.2,1.62030481]
[1718382064421,2.91759,3427.5,3426.5,1.758]
[1718382064624,0.05019777,3427.4,3426.6,1.49179689]
[1718382064840,2.91751,3427.6,3426.6,1.49179689]
[1718382065046,2.91693,3428.3,3427.1,4.67591]
[1718382065229,2.91714,3428.1,3427.2,1.49179063]
[1718382065560,0.05043903,3428.0,3427.2,1.49179063]
[1718382065935,2.91675,3428.5,3427.2,1.49179063]
[1718382065936,2.9169,3428.3,3427.2,1.49179063]
[1718382066146,0.0505544,3427.9,3427.2,1.49179063]
[1718382066349,2.91677,3428.5,3427.2,1.49179063]
[1718382066550,0.05050005,3427.8,3427.2,4.35868091]
[1718382066749,2.91699,3428.2,3427.2,1.49179063]
[1718382066953,2.91693,3428.3,3427.2,1.49179063]
[1718382066954,0.0504457,3427.7,3427.2,1.49179063]
[1718382067160,2.91698,3428.2,3427.2,1.49179063]
[1718382067632,2.91722,3428.0,3427.2,1.43344514]
[1718382067829,2.91733,3427.8,3426.6,5.91832]
[1718382068133,0.04996269,3427.7,3426.7,6.05471714]
[1718382068442,2.91715,3428.0,3426.7,41.05471714]
[1718382069167,2.91734,3427.8,3426.7,41.05471714]
[1718382069389,2.91703,3428.2,3426.7,38.13647714]
[1718382069592,2.9169,3428.3,3426.8,3.5265125]
[1718382069726,2.91726,3427.9,3426.9,4.30033542]
[1718382069926,2.91741,3427.7,3426.9,4.30033542]
[1718382070171,2.91741,3427.7,3426.9,36.43344514]
[1718382070475,2.91749,3427.6,3426.9,1.43344514]
[1718382070674,0.04987197,3427.6,3426.9,1.43344514]
[1718382071180,2.96736197,3427.6,3426.9,1.43344514]
[1718382071379,7.36097197,3427.6,3426.9,1.43344514]
[1718382071590,10.22861,3427.6,3426.9,1.43344514]
[1718382071737,0.04995898,3427.5,3426.9,1.43344514]
[1718382071939,0.04995898,3427.5,3426.0,1.758]
[1718382072137,7.3111,3427.6,3426.0,1.758]
[1718382072138,2.91791,3427.1,3426.1,1.43344514]
[1718382072338,2.91826,3426.7,3426.1,1.43344514]
[1718382072744,0.04925134,3426.6,3426.1,1.43344514]
[1718382073040,2.91826,3426.7,3426.1,1.43344514]
[1718382073041,2.91827,3426.7,3426.1,1.43344514]
[1718382073522,2.91837,3426.6,3426.1,1.43344514]
[1718382073725,2.91844,3426.5,3426.1,1.43344514]
[1718382073923,2.91862,3426.3,3425.3,3.059]
[1718382074122,2.91809,3426.9,3425.4,2.15011892]
[1718382074123,2.9187,3426.2,3425.4,2.15011892]
[1718382074431,0.04804965,3426.2,3425.4,2.15011892]
[1718382074630,2.96680965,3426.2,3425.4,2.15011892]
[1718382074940,2.91876,3426.2,3425.4,2.15011892]
[1718382075230,2.91878,3426.1,3425.4,2.15011892]
[1718382075433,2.91878,3426.1,3425.4,1.43344514]
[1718382075633,0.04795188,3426.0,3425.5,35.0]
[1718382075791,0.04795188,3426.0,3425.6,1.49182547]
[1718382075992,2.91855,3426.4,3425.6,1.49182547]
[1718382076192,6.00078,3427.3,3425.6,1.49182547]
[1718382076193,2.91775,3427.3,3426.2,2.91865]
[1718382076431,2.91767,3427.4,3426.3,2.08967563]
[1718382076589,2.91705,3428.2,3426.4,35.0]
[1718382076792,2.91705,3428.2,3426.7,3.06]
[1718382077006,9.67489,3428.5,3426.8,4.95995906]
[1718382077210,6.7581,3428.5,3427.2,3.06]
[1718382077407,6.7581,3428.5,3427.3,0.889583]
[1718382077612,6.7581,3428.5,3426.5,3.0]
[1718382077613,1.43344514,3428.4,3426.5,3.0]
[1718382077849,2.91793,3427.1,3425.9,2.91887]
[1718382078087,2.91693,3428.3,3425.9,2.91887]
[1718382078088,2.9174,3427.7,3426.2,2.91863]
[1718382078355,2.9174,3427.7,3426.4,2.91848]
[1718382078568,2.91727,3427.9,3426.7,2.91818]
[1718382078719,2.91652,3428.8,3426.9,3.06]
[1718382078918,2.9174,3427.8,3426.9,1.43344514]
[1718382079119,2.91748,3427.7,3427.0,35.0]
[1718382079348,2.91724,3427.9,3426.6,2.91833]
[1718382079515,2.91733,3427.8,3426.7,2.91824]
[1718382079853,2.91733,3427.8,3426.7,4.25125051]
[1718382080047,9.67484,3428.5,3427.0,2.91792]
[1718382080215,2.91699,3428.2,3427.1,1.43344514]
[1718382080424,9.67484,3428.5,3427.1,4.35133514]
[1718382080762,6.7581,3428.5,3427.2,0.0583524]
[1718382080978,6.7581,3428.5,3427.6,2.91747]
[1718382081113,7.4777,3429.1,3427.9,2.91721]
[1718382081460,7.4777,3429.1,3428.1,2.91706]
[1718382081769,7.4777,3429.1,3428.1,1.43344514]
[1718382082220,7.4777,3429.1,3428.1,4.35048514]
[1718382082418,7.4777,3429.1,3428.1,5.36896365]
[1718382082754,2.91585,3429.6,3428.3,2.91689]
[1718382082755,2.91595,3429.5,3428.3,2.91689]
[1718382082916,2.91595,3429.5,3428.3,4.35033514]
[1718382083268,2.91605,3429.3,3428.3,1.43344514]
[1718382083433,2.91629,3429.1,3427.9,3.06]
[1718382083615,3.207919,3429.1,3428.0,1.43344514]
[1718382084117,0.291629,3429.1,3428.0,4.35058514]
[1718382084323,6.8901,3429.9,3428.1,0.05833488]
[1718382084543,0.04285137,3429.0,3428.2,4.90034514]
[1718382084752,9.80565,3429.9,3428.8,2.91645]
[1718382084918,0.04257733,3428.9,3428.6,2.91656]
[1718382085117,2.91562,3429.8,3428.7,3.70070898]
[1718382085352,2.91562,3429.8,3428.7,6.61725898]
[1718382085674,0.04320509,3429.7,3428.7,3.70070898]
[1718382085960,0.04320509,3429.7,3428.9,5.9763]
[1718382086168,0.0702585,3430.0,3429.0,5.60901604]
[1718382086458,0.04268148,3429.6,3429.0,5.60901604]
[1718382086752,0.0702585,3430.0,3429.0,5.60907604]
[1718382086929,0.04335196,3429.5,3429.0,5.60907604]
[1718382087115,0.0702585,3430.0,3429.0,2.69278604]
[1718382087311,0.04257285,3429.4,3429.1,2.86689028]
[1718382087555,0.0702585,3430.0,3429.1,4.30033542]
[1718382087756,2.9857085,3430.0,3429.1,1.43344514]
[1718382087973,0.04356911,3429.9,3429.1,1.43344514]
[1718382088259,2.9857085,3430.0,3429.1,1.43344514]
[1718382088643,0.04337127,3429.9,3429.1,1.43344514]
[1718382089018,2.91564,3429.8,3428.6,3.054]
[1718382089262,2.91564,3429.8,3428.7,2.16951214]
[1718382089429,2.91589,3429.5,3428.7,1.43344514]
[1718382089633,2.91589,3429.5,3428.1,3.054]
[1718382089634,7.431,3429.5,3428.1,3.054]
[1718382089822,2.91638,3428.9,3427.4,2.91766]
[1718382090021,2.91639,3428.9,3427.8,2.9173]
[1718382090233,2.91639,3428.9,3427.9,1.43344514]
[1718382090234,0.04277376,3428.8,3427.9,1.43344514]
[1718382090536,2.91596,3429.4,3428.0,2.97544797]
[1718382090877,7.431,3429.5,3428.1,4.48744514]
[1718382090878,2.91622,3429.1,3428.1,4.48744514]
[1718382091015,10.34693,3429.5,3428.1,4.48744514]
[1718382091217,2.95945473,3429.0,3428.1,4.48744514]
[1718382091463,2.91622,3429.1,3428.1,4.48744514]
[1718382091756,0.04293677,3429.0,3428.3,2.91681]
[1718382091987,10.34688,3429.5,3428.4,1.49177525]
[1718382092184,0.0428542,3428.9,3428.4,1.49177525]
[1718382092367,2.91596,3429.4,3428.4,2.52973077]
[1718382092566,0.04263032,3428.8,3428.4,2.52973077]
[1718382092768,10.34687,3429.5,3428.4,2.52973077]
[1718382092938,0.04281634,3428.7,3428.4,2.52973077]
[1718382093140,3.78566862,3430.7,3428.6,5.97064]
[1718382093141,2.9857885,3430.0,3428.6,5.97064]
[1718382093351,0.0702585,3430.0,3429.0,2.91623]
[1718382093550,0.0702585,3430.0,3429.1,1.43344514]
[1718382093753,0.0702585,3430.0,3429.1,4.48744514]
[1718382093971,2.9857385,3430.0,3429.1,4.48744514]
[1718382094171,0.0702585,3430.0,3429.1,4.48744514]
[1718382094372,2.9857085,3430.0,3429.1,5.22783565]
[1718382094847,0.0702585,3430.0,3429.1,5.22783565]
[1718382095045,0.0702585,3430.0,3429.1,8.14404565]
[1718382095959,0.0702585,3430.0,3429.2,0.55]
[1718382096148,0.0702585,3430.0,3429.3,4.34947514]
[1718382096348,0.0702585,3430.0,3429.4,1.16099157]
[1718382096580,0.0702585,3430.0,3429.5,1.43344514]
[1718382096795,0.0702585,3430.0,3429.1,3.79439051]
[1718382096949,7.3087585,3430.0,3428.6,3.90403708]
[1718382097275,2.91587,3429.5,3428.7,1.43344514]
[1718382097589,2.9158,3429.6,3428.7,1.96719336]
[1718382097961,2.91564,3429.8,3428.7,1.96719336]
[1718382098142,7.3087585,3430.0,3428.2,2.91698]
[1718382098143,2.91611,3429.3,3428.2,2.91698]
[1718382098348,2.91622,3429.1,3428.3,1.43344514]
[1718382098944,2.91584,3429.6,3428.3,1.43344514]
[1718382098945,2.91614,3429.2,3428.3,1.43344514]
[1718382099782,2.91596,3429.4,3428.3,1.43344514]
[1718382099980,2.91638,3429.0,3428.3,1.43344514]
[1718382100387,2.91672,3428.6,3427.6,3.054]
[1718382100541,2.91672,3428.6,3427.7,1.43344514]
[1718382100542,2.91664,3428.6,3427.7,1.43344514]
[1718382100746,2.91684,3428.4,3427.7,1.43344514]
[1718382101389,2.91681,3428.4,3427.7,1.43344514]
[1718382101684,2.91681,3428.4,3427.6,3.054]
[1718382101890,2.91691,3428.3,3427.6,5.48833514]
[1718382102091,2.91672,3428.5,3427.6,5.48833514]
[1718382102406,2.9169,3428.3,3427.6,5.48833514]
[1718382102589,2.91689,3428.3,3427.2,3.0]
[1718382102899,0.04187294,3428.2,3427.3,4.43344514]
[1718382103055,2.95886294,3428.2,3427.3,4.43344514]
[1718382103394,0.04187294,3428.2,3427.5,2.91756]
[1718382103598,2.91652,3428.8,3427.6,1.49178854]
[1718382103599,2.91673,3428.5,3427.6,1.49178854]
[1718382103895,0.04239804,3428.1,3427.6,1.49178854]
[1718382104090,7.431359,3429.0,3427.6,1.64096739]
[1718382104263,2.91639,3428.9,3427.6,4.69496739]
[1718382104479,2.91656,3428.7,3427.6,7.61245739]
[1718382104679,0.04252985,3428.6,3427.7,2.9174]
[1718382105005,7.431359,3429.0,3427.8,1.49178527]
[1718382105006,6.8481,3429.0,3427.8,1.49178527]
[1718382105311,6.8481,3429.0,3427.9,3.38672641]
[1718382105312,0.04247552,3428.5,3427.9,3.38672641]
[1718382105512,6.8481,3429.0,3427.9,3.38672641]
[1718382105821,0.04179481,3428.4,3427.8,1.43344514]
[1718382105965,2.91656,3428.7,3427.8,1.43344514]
[1718382106169,0.04174348,3428.3,3427.6,3.20317885]
[1718382106411,2.91686,3428.4,3427.6,3.20317885]
[1718382106585,0.04161959,3428.2,3427.6,3.20317885]
[1718382106911,2.91692,3428.3,3427.6,3.20317885]
[1718382107112,0.04156523,3428.1,3427.6,4.63662399]
[1718382107275,2.91692,3428.3,3427.6,4.48744514]
[1718382107481,2.91682,3428.4,3427.6,4.48744514]
[1718382107680,0.04161959,3428.2,3427.6,4.48744514]
[1718382107977,0.04205152,3428.1,3427.6,4.48744514]
[1718382108178,2.95918152,3428.1,3427.2,3.0]
[1718382108434,2.95918152,3428.1,3427.3,2.33064314]
[1718382108918,0.04205152,3428.1,3427.3,2.33064314]
[1718382109128,0.04205152,3428.1,3427.6,2.91747]
[1718382109273,0.04205152,3428.1,3427.7,1.43344514]
[1718382109473,2.91657,3428.7,3427.7,1.43344514]
[1718382109793,0.04249439,3428.6,3427.8,0.7988341]
[1718382110011,2.91649,3428.8,3427.9,1.43344514]
[1718382110177,0.04244006,3428.5,3427.9,1.43344514]
[1718382110375,2.91631,3429.0,3427.9,1.43344514]
[1718382110576,0.04261201,3428.4,3427.9,1.43344514]
[1718382110791,2.91639,3428.9,3428.0,0.50913067]
[1718382111031,0.04245882,3428.3,3428.0,1.43344514]
[1718382111235,6.8393,3429.4,3427.6,3.054]
[1718382111374,6.8393,3429.4,3427.6,1.43344514]
[1718382111375,0.04240449,3428.2,3427.6,1.43344514]
[1718382111693,2.91656,3428.7,3427.6,1.43344514]
[1718382111876,2.9167,3428.6,3427.7,0.43509951]
[1718382112073,2.91683,3428.4,3427.7,0.43509951]
[1718382112275,2.91683,3428.4,3427.6,1.43344514]
[1718382112476,0.04208905,3428.3,3427.6,1.43344514]
[1718382114438,0.04208905,3428.3,3427.4,3.0]
[1718382114581,2.91705,3428.2,3427.3,0.897198]
[1718382114776,2.91715,3428.0,3427.4,0.9869098]
[1718382115282,0.04212699,3427.9,3427.4,0.9869098]
[1718382115532,2.91733,3427.8,3427.1,3.054]
[1718382115734,2.91733,3427.8,3427.1,4.48744514]
[1718382116032,2.91749,3427.6,3427.1,3.054]
[1718382116179,2.9175,3427.6,3426.8,3.0]
[1718382116380,0.04178226,3427.5,3426.9,1.43344514]
[1718382116679,2.91773,3427.4,3426.9,1.04057751]
[1718382116908,0.04178226,3427.5,3426.6,3.054]
[1718382117219,2.91782,3427.3,3426.7,1.43344514]
[1718382117582,2.9175,3427.6,3426.7,1.43344514]
[1718382117583,0.04155264,3427.2,3426.7,1.43344514]
[1718382117786,2.9175,3427.6,3426.7,1.43344514]
[1718382117975,0.04149826,3427.1,3426.7,1.43344514]
[1718382118180,2.91701,3428.2,3426.8,0.50710405]
[1718382118384,0.04144388,3427.0,3426.9,1.43344514]
[1718382118589,2.91734,3427.8,3426.9,1.43344514]
[1718382118900,2.91734,3427.8,3427.1,3.054]
[1718382118901,2.91733,3427.8,3427.1,3.054]
[1718382119085,2.91733,3427.8,3427.1,4.48744514]
[1718382119285,2.91742,3427.7,3427.1,4.98106411]
[1718382119898,2.91733,3427.8,3427.1,4.98106411]
[1718382120303,2.91707,3428.1,3427.1,4.98106411]
[1718382120630,2.91682,3428.4,3427.2,4.40962806]
[1718382120631,2.91687,3428.4,3427.2,4.40962806]
[1718382120793,2.9169,3428.3,3427.3,0.7957247]
[1718382120988,2.9169,3428.3,3427.4,1.43344514]
[1718382121430,2.91727,3427.9,3427.3,0.7957247]
[1718382121594,2.91751,3427.6,3427.1,3.054]
[1718382121931,2.91751,3427.6,3426.8,0.44874451]
[1718382122133,2.91741,3427.7,3426.8,0.44874451]
[1718382122697,2.9173,3427.9,3426.8,4.85871834]
[1718382123018,2.9173,3427.9,3426.8,4.80035965]
[1718382123346,2.91733,3427.8,3426.9,1.37726997]
[1718382123803,2.91715,3428.0,3427.0,1.43344514]
[1718382124001,2.91723,3427.9,3427.0,1.43344514]
[1718382124405,2.91673,3428.5,3427.1,6.03025427]
[1718382124647,2.91681,3428.4,3427.2,4.35125514]
[1718382124832,2.91729,3427.9,3427.1,1.43344514]
[1718382125018,2.91735,3427.8,3427.0,3.0]
[1718382125234,1.316298,3428.4,3426.8,0.44874451]
[1718382125235,2.91772,3427.4,3426.8,0.44874451]
[1718382125433,2.9176,3427.5,3426.8,0.44874451]
[1718382125747,2.91751,3427.6,3426.8,0.44874451]
[1718382125909,2.91758,3427.5,3426.8,0.44874451]
[1718382126507,2.91767,3427.4,3426.8,0.44874451]
[1718382126718,2.91767,3427.4,3426.2,3.054]
[1718382126719,2.91776,3427.3,3426.2,3.054]
[1718382126973,2.91819,3426.8,3426.2,1.43344514]
[1718382127142,2.91835,3426.6,3425.5,10.21096]
[1718382127465,0.04104537,3427.2,3425.6,1.43344514]
[1718382127466,2.9186,3426.3,3425.6,1.43344514]
[1718382127609,2.91885,3426.0,3425.7,1.17791451]
[1718382127806,2.91877,3426.1,3424.9,9.8729]
[1718382128065,6.9709,3426.6,3425.0,1.43344514]
[1718382128066,2.95850039,3425.9,3425.0,1.43344514]
[1718382128359,0.03949595,3425.8,3425.0,1.43344514]
[1718382128558,2.9186,3426.3,3425.1,0.05838304]
[1718382128756,0.03943848,3425.7,3425.2,1.43344514]
[1718382128928,0.03943848,3425.7,3425.5,2.91927]
[1718382129256,0.03943848,3425.7,3425.4,3.054]
[1718382129257,2.91793,3427.1,3425.7,2.91903]
[1718382129409,2.91775,3427.3,3426.2,2.91866]
[1718382129609,2.91775,3427.3,3425.7,2.91903]
[1718382129610,0.03988268,3427.0,3425.5,3.054]
[1718382129809,2.91799,3427.1,3426.0,2.91879]
[1718382130037,0.0403473,3426.9,3426.1,2.07558988]
[1718382130238,2.91761,3427.5,3426.1,2.07558988]
[1718382130445,2.91767,3427.4,3426.3,2.91852]
[1718382130757,0.04070407,3427.4,3426.7,2.91825]
[1718382130917,2.91715,3428.0,3426.8,4.5457982]
[1718382131117,2.91715,3428.0,3426.9,0.74640482]
[1718382131118,2.91733,3427.8,3426.9,0.74640482]
[1718382131414,2.91707,3428.1,3427.0,1.43344514]
[1718382131613,0.04093123,3427.7,3427.0,1.43344514]
[1718382131940,0.04079205,3427.6,3427.0,1.43344514]
[1718382132147,2.91756,3427.6,3427.0,1.43344514]
[1718382132343,2.91774,3427.3,3426.1,0.583778]
[1718382132512,2.91811,3426.9,3426.2,1.43344514]
[1718382132711,0.04033631,3426.8,3425.3,7.73554282]
[1718382132956,0.04033631,3426.8,3425.5,3.054]
[1718382132957,2.91874,3426.2,3425.5,3.054]
[1718382133156,2.91791,3427.2,3425.5,1.43344514]
[1718382133157,2.91831,3426.7,3425.5,1.43344514]
[1718382133412,2.91831,3426.7,3424.8,9.0524]
[1718382133413,2.91895,3425.9,3424.9,2.91979]
[1718382133570,2.91885,3426.0,3425.0,1.43344514]
[1718382133767,0.04024225,3425.8,3425.0,1.43344514]
[1718382134005,2.91886,3426.0,3425.0,4.35313514]
[1718382134180,0.04018783,3425.7,3425.0,1.43344514]
[1718382134502,2.91886,3426.0,3425.1,1.93794751]
[1718382134711,2.91886,3426.0,3424.9,2.91977]
[1718382134712,2.91911,3425.7,3424.8,10.3484]
[1718382135006,0.04030167,3425.6,3424.9,1.49183422]
[1718382135160,2.91901,3425.9,3424.9,1.49183422]
[1718382135366,0.04024725,3425.5,3424.9,1.49183422]
[1718382135592,2.91904,3425.8,3424.9,1.49183422]